{"text_format":"3","workbook":"xlsx","n_sheets":1,"sheets":["Poročilo o stroških"],"not_rendered":{"images":2,"defined_names":12},"read":"whole","date_system":"1900"}

{"sheet":"Poročilo o stroških","index":0,"n_rows":24,"n_cols":13,"rows_kept":24,"merged":[[3,2,3,3],[3,5,3,6],[3,9,3,10],[4,2,4,3],[4,5,4,6],[4,9,4,10],[5,2,5,3],[5,5,5,6],[5,9,5,10],[6,2,6,3],[6,5,6,6],[6,9,6,10],[7,9,7,10]]}
[null,"POROČILO O STROŠKIH"]
[null,"CONTOSO, LTD"]
[null,"123 South Main Street, North Buffalo, NY 12345"]
[null,"TELEFON",4255550121,null,"IME","Maja Košir",null,null,"NAMEN","Seminar o letni prodaji",null,"TARIFA NA KILOMETER",{"v":0.5,"d":"0.50 €/km"}]
[null,"FAKS",4255550122,null,"ODDELEK","Prodaja",null,null,"ZAČETEK",{"$f":"IFERROR(MIN(Stroški[DATUM]),\"\")","v":"2018-06-04"},null,"TARIFA ZA OBROK",{"v":30,"d":"30.00 €/dan"}]
[null,"E-POŠTA","info@contoso.com",null,"POLOŽAJ","Generalni direktor",null,null,"KONEC",{"$f":"IFERROR(MAX(Stroški[DATUM]),\"\")","v":"2018-07-04"},null,"TARIFA ZA HOTEL",{"v":200,"d":"200.00 €/noč"}]
[null,"SPLET","www.contoso.com",null,"VODJA","Aleš Bizjak",null,null,"PRIPRAVIL","Maja Košir",null,"TARIFA ZA TELEFON",{"v":10,"d":"10.00 €/dan"}]
[{"$nulls":8},"ODOBRIL","Aleš Bizjak",null,"RAZNO TARIFA",{"v":50,"d":"50.00 €/dan"}]
[]
[null,"DATUM","RAČUN","OPIS","HOTEL","PREVOZ","OBROKI","TELEFON","RAZNO","ZAČETEK \nŠTEVCA KILOMETROV","KONEC \nŠTEVCA KILOMETROV","KILOMETRINA \nSKUPAJ","SKUPAJ "]
[null,{"$f":"TODAY()","v":"2018-06-04"},"Prodaja","Kilometrina",{"$nulls":4},{"v":50,"d":"50.00 €"},{"v":11378.5,"d":"11,378.5 km"},{"v":11456.2,"d":"11,456.2 km"},{"$f":"IF(COUNTA(Stroški[[#This Row],[ZAČETEK \nŠTEVCA KILOMETROV]:[KONEC \nŠTEVCA KILOMETROV]])=2,(Stroški[[#This Row],[KONEC \nŠTEVCA KILOMETROV]]-Stroški[[#This Row],[ZAČETEK \nŠTEVCA KILOMETROV]])*TarifaNaKilometer,\"\")","v":{"v":38.850000000000364,"d":"38.85 €"}},{"$f":"IF(COUNTA(Stroški[[#This Row],[DATUM]:[KONEC \nŠTEVCA KILOMETROV]])=0,\"\",SUM(Stroški[[#This Row],[HOTEL]:[PREVOZ]],Stroški[[#This Row],[OBROKI]:[RAZNO]],((Stroški[[#This Row],[KONEC \nŠTEVCA KILOMETROV]]-Stroški[[#This Row],[ZAČETEK \nŠTEVCA KILOMETROV]])*(TarifaNaKilometer))))","v":{"v":88.85000000000036,"d":"88.85 €"}}]
[null,{"$f":"TODAY()+30","v":"2018-07-04"},"Prodaja","Konvencija",{"v":445,"d":"445.00 €"},{"v":225,"d":"225.00 €"},{"v":20,"d":"20.00 €"},null,{"v":5,"d":"5.00 €"},{"v":11500,"d":"11,500.0 km"},{"v":11560,"d":"11,560.0 km"},{"$f":"IF(COUNTA(Stroški[[#This Row],[ZAČETEK \nŠTEVCA KILOMETROV]:[KONEC \nŠTEVCA KILOMETROV]])=2,(Stroški[[#This Row],[KONEC \nŠTEVCA KILOMETROV]]-Stroški[[#This Row],[ZAČETEK \nŠTEVCA KILOMETROV]])*TarifaNaKilometer,\"\")","v":{"v":30,"d":"30.00 €"}},{"$f":"IF(COUNTA(Stroški[[#This Row],[DATUM]:[KONEC \nŠTEVCA KILOMETROV]])=0,\"\",SUM(Stroški[[#This Row],[HOTEL]:[PREVOZ]],Stroški[[#This Row],[OBROKI]:[RAZNO]],((Stroški[[#This Row],[KONEC \nŠTEVCA KILOMETROV]]-Stroški[[#This Row],[ZAČETEK \nŠTEVCA KILOMETROV]])*(TarifaNaKilometer))))","v":{"v":725,"d":"725.00 €"}}]
[{"$nulls":11},{"$f":"IF(COUNTA(Stroški[[#This Row],[ZAČETEK \nŠTEVCA KILOMETROV]:[KONEC \nŠTEVCA KILOMETROV]])=2,(Stroški[[#This Row],[KONEC \nŠTEVCA KILOMETROV]]-Stroški[[#This Row],[ZAČETEK \nŠTEVCA KILOMETROV]])*TarifaNaKilometer,\"\")","v":""},{"$f":"IF(COUNTA(Stroški[[#This Row],[DATUM]:[KONEC \nŠTEVCA KILOMETROV]])=0,\"\",SUM(Stroški[[#This Row],[HOTEL]:[PREVOZ]],Stroški[[#This Row],[OBROKI]:[RAZNO]],((Stroški[[#This Row],[KONEC \nŠTEVCA KILOMETROV]]-Stroški[[#This Row],[ZAČETEK \nŠTEVCA KILOMETROV]])*(TarifaNaKilometer))))","v":""}]
[{"$nulls":11},{"$f":"IF(COUNTA(Stroški[[#This Row],[ZAČETEK \nŠTEVCA KILOMETROV]:[KONEC \nŠTEVCA KILOMETROV]])=2,(Stroški[[#This Row],[KONEC \nŠTEVCA KILOMETROV]]-Stroški[[#This Row],[ZAČETEK \nŠTEVCA KILOMETROV]])*TarifaNaKilometer,\"\")","v":""},{"$f":"IF(COUNTA(Stroški[[#This Row],[DATUM]:[KONEC \nŠTEVCA KILOMETROV]])=0,\"\",SUM(Stroški[[#This Row],[HOTEL]:[PREVOZ]],Stroški[[#This Row],[OBROKI]:[RAZNO]],((Stroški[[#This Row],[KONEC \nŠTEVCA KILOMETROV]]-Stroški[[#This Row],[ZAČETEK \nŠTEVCA KILOMETROV]])*(TarifaNaKilometer))))","v":""}]
[{"$nulls":11},{"$f":"IF(COUNTA(Stroški[[#This Row],[ZAČETEK \nŠTEVCA KILOMETROV]:[KONEC \nŠTEVCA KILOMETROV]])=2,(Stroški[[#This Row],[KONEC \nŠTEVCA KILOMETROV]]-Stroški[[#This Row],[ZAČETEK \nŠTEVCA KILOMETROV]])*TarifaNaKilometer,\"\")","v":""},{"$f":"IF(COUNTA(Stroški[[#This Row],[DATUM]:[KONEC \nŠTEVCA KILOMETROV]])=0,\"\",SUM(Stroški[[#This Row],[HOTEL]:[PREVOZ]],Stroški[[#This Row],[OBROKI]:[RAZNO]],((Stroški[[#This Row],[KONEC \nŠTEVCA KILOMETROV]]-Stroški[[#This Row],[ZAČETEK \nŠTEVCA KILOMETROV]])*(TarifaNaKilometer))))","v":""}]
[{"$nulls":11},{"$f":"IF(COUNTA(Stroški[[#This Row],[ZAČETEK \nŠTEVCA KILOMETROV]:[KONEC \nŠTEVCA KILOMETROV]])=2,(Stroški[[#This Row],[KONEC \nŠTEVCA KILOMETROV]]-Stroški[[#This Row],[ZAČETEK \nŠTEVCA KILOMETROV]])*TarifaNaKilometer,\"\")","v":""},{"$f":"IF(COUNTA(Stroški[[#This Row],[DATUM]:[KONEC \nŠTEVCA KILOMETROV]])=0,\"\",SUM(Stroški[[#This Row],[HOTEL]:[PREVOZ]],Stroški[[#This Row],[OBROKI]:[RAZNO]],((Stroški[[#This Row],[KONEC \nŠTEVCA KILOMETROV]]-Stroški[[#This Row],[ZAČETEK \nŠTEVCA KILOMETROV]])*(TarifaNaKilometer))))","v":""}]
[{"$nulls":11},{"$f":"IF(COUNTA(Stroški[[#This Row],[ZAČETEK \nŠTEVCA KILOMETROV]:[KONEC \nŠTEVCA KILOMETROV]])=2,(Stroški[[#This Row],[KONEC \nŠTEVCA KILOMETROV]]-Stroški[[#This Row],[ZAČETEK \nŠTEVCA KILOMETROV]])*TarifaNaKilometer,\"\")","v":""},{"$f":"IF(COUNTA(Stroški[[#This Row],[DATUM]:[KONEC \nŠTEVCA KILOMETROV]])=0,\"\",SUM(Stroški[[#This Row],[HOTEL]:[PREVOZ]],Stroški[[#This Row],[OBROKI]:[RAZNO]],((Stroški[[#This Row],[KONEC \nŠTEVCA KILOMETROV]]-Stroški[[#This Row],[ZAČETEK \nŠTEVCA KILOMETROV]])*(TarifaNaKilometer))))","v":""}]
[{"$nulls":11},{"$f":"IF(COUNTA(Stroški[[#This Row],[ZAČETEK \nŠTEVCA KILOMETROV]:[KONEC \nŠTEVCA KILOMETROV]])=2,(Stroški[[#This Row],[KONEC \nŠTEVCA KILOMETROV]]-Stroški[[#This Row],[ZAČETEK \nŠTEVCA KILOMETROV]])*TarifaNaKilometer,\"\")","v":""},{"$f":"IF(COUNTA(Stroški[[#This Row],[DATUM]:[KONEC \nŠTEVCA KILOMETROV]])=0,\"\",SUM(Stroški[[#This Row],[HOTEL]:[PREVOZ]],Stroški[[#This Row],[OBROKI]:[RAZNO]],((Stroški[[#This Row],[KONEC \nŠTEVCA KILOMETROV]]-Stroški[[#This Row],[ZAČETEK \nŠTEVCA KILOMETROV]])*(TarifaNaKilometer))))","v":""}]
[{"$nulls":11},{"$f":"IF(COUNTA(Stroški[[#This Row],[ZAČETEK \nŠTEVCA KILOMETROV]:[KONEC \nŠTEVCA KILOMETROV]])=2,(Stroški[[#This Row],[KONEC \nŠTEVCA KILOMETROV]]-Stroški[[#This Row],[ZAČETEK \nŠTEVCA KILOMETROV]])*TarifaNaKilometer,\"\")","v":""},{"$f":"IF(COUNTA(Stroški[[#This Row],[DATUM]:[KONEC \nŠTEVCA KILOMETROV]])=0,\"\",SUM(Stroški[[#This Row],[HOTEL]:[PREVOZ]],Stroški[[#This Row],[OBROKI]:[RAZNO]],((Stroški[[#This Row],[KONEC \nŠTEVCA KILOMETROV]]-Stroški[[#This Row],[ZAČETEK \nŠTEVCA KILOMETROV]])*(TarifaNaKilometer))))","v":""}]
[{"$nulls":11},{"$f":"IF(COUNTA(Stroški[[#This Row],[ZAČETEK \nŠTEVCA KILOMETROV]:[KONEC \nŠTEVCA KILOMETROV]])=2,(Stroški[[#This Row],[KONEC \nŠTEVCA KILOMETROV]]-Stroški[[#This Row],[ZAČETEK \nŠTEVCA KILOMETROV]])*TarifaNaKilometer,\"\")","v":""},{"$f":"IF(COUNTA(Stroški[[#This Row],[DATUM]:[KONEC \nŠTEVCA KILOMETROV]])=0,\"\",SUM(Stroški[[#This Row],[HOTEL]:[PREVOZ]],Stroški[[#This Row],[OBROKI]:[RAZNO]],((Stroški[[#This Row],[KONEC \nŠTEVCA KILOMETROV]]-Stroški[[#This Row],[ZAČETEK \nŠTEVCA KILOMETROV]])*(TarifaNaKilometer))))","v":""}]
[{"$nulls":11},{"$f":"IF(COUNTA(Stroški[[#This Row],[ZAČETEK \nŠTEVCA KILOMETROV]:[KONEC \nŠTEVCA KILOMETROV]])=2,(Stroški[[#This Row],[KONEC \nŠTEVCA KILOMETROV]]-Stroški[[#This Row],[ZAČETEK \nŠTEVCA KILOMETROV]])*TarifaNaKilometer,\"\")","v":""},{"$f":"IF(COUNTA(Stroški[[#This Row],[DATUM]:[KONEC \nŠTEVCA KILOMETROV]])=0,\"\",SUM(Stroški[[#This Row],[HOTEL]:[PREVOZ]],Stroški[[#This Row],[OBROKI]:[RAZNO]],((Stroški[[#This Row],[KONEC \nŠTEVCA KILOMETROV]]-Stroški[[#This Row],[ZAČETEK \nŠTEVCA KILOMETROV]])*(TarifaNaKilometer))))","v":""}]
[null,"SKUPNI ZNESKI",null,null,{"$f":"SUBTOTAL(109,Stroški[HOTEL])","v":{"v":445,"d":"445.00 €"}},{"$f":"SUBTOTAL(109,Stroški[PREVOZ])","v":{"v":225,"d":"225.00 €"}},{"$f":"SUBTOTAL(109,Stroški[OBROKI])","v":{"v":20,"d":"20.00 €"}},{"$f":"SUBTOTAL(109,Stroški[TELEFON])","v":0},{"$f":"SUBTOTAL(109,Stroški[RAZNO])","v":{"v":55,"d":"55.00 €"}},{"$nulls":3},{"$f":"SUBTOTAL(109,Stroški[[SKUPAJ ]])","v":{"v":813.8500000000004,"d":"813.85 €"}}]
[{"$nulls":11},"PREDPLAČILA",{"v":0,"d":"0.00 €"}]
[{"$nulls":11},"SKUPAJ",{"$f":"Stroški[[#Totals],[SKUPAJ ]]-Predplačila","v":{"v":813.8500000000004,"d":"813.85 €"}}]